fUST/lending_fUST_20240302
["ID","MTS","AMOUNT","RATE_DAILY","PERIOD"]
[315972472,1709308887861,1362.14528464,0.00018532,5]
[315972473,1709308981622,-294.5719047,0.00017046,2]
[315972474,1709308981643,-697.15057722,0.00017047,2]
[315972475,1709308981663,-538.36619156,0.00017047,2]
[315972476,1709308981683,-155.02325349,0.00017048,2]
[315972477,1709308981702,-176.2238837,0.00017048,2]
[315972478,1709308981722,-155.723056,0.00017048,2]
[315972479,1709308981743,-290.08429773,0.00017048,2]
[315972480,1709308981763,-179.57077703,0.00017049,2]
[315972481,1709308981783,-155.02325349,0.00017049,2]
[315972482,1709308981802,-527.85698207,0.00017049,2]
[315972483,1709308981821,-400.82246414,0.00017049,2]
[315972484,1709308981841,-557.5480976,0.00017049,2]
[315972485,1709308981864,-263.101502,0.0001705,2]
[315972486,1709308981884,-155.02015262,0.00017874,2]
[315972487,1709308981904,-15234.87744507,0.00017876,2]
[315972488,1709308981924,-2367.03616158,0.00017968,2]
[315972489,1709309050176,-30572.09899469,0.00017966,2]
[315972490,1709309050198,-2111.9879456,0.00017967,2]
[315972491,1709309050221,-5671.91305971,0.00017967,2]
[315972492,1709309082882,1362.14528464,0.00018898,5]
[315972519,1709309160108,-632.96383842,0.00017968,2]
[315972520,1709309160136,-8010.05157774,0.00017999,2]
[315972521,1709309160165,-5445.53710548,0.00018,2]
[315972522,1709309160195,-75.34529121,0.00018546,2]
[315972523,1709309160239,-294.5719047,0.00018894,2]
[315972524,1709309160274,-527.85698207,0.00018895,2]
[315972525,1709309160312,-538.36619156,0.00018896,2]
[315972526,1709309160355,-176.2238837,0.00018896,2]
[315972527,1709309160389,-179.57077703,0.00018897,2]
[315972528,1709309160421,-15234.87744507,0.00018897,2]
[315972529,1709309160594,-98166.80005789,0.00018899,2]
[315972530,1709309160626,-1761.11489247,0.000189,2]
[315972531,1709309160655,-1545.0750142,0.00019177,2]
[315972532,1709309188509,1213.89294593,0.0003,120]
[315972533,1709309198064,1212.25456012,0.0003,120]
[315972535,1709309211239,1212.25456012,0.0003,120]
[315972536,1709309228359,1362.14528464,0.00019177,5]
[315972537,1709309230177,386.57200332,0.0003,120]
[315972538,1709309245006,1174.07659498,0.000189,2]
[315972539,1709309297030,176.2238837,0.00019177,2]
[315972540,1709309298210,294.5719047,0.00019177,2]
[315972541,1709309340360,155.02325349,0.00019177,2]
[315972542,1709309352312,261.09153092,0.00019177,2]
[315972543,1709309375241,1362.14528464,0.00019177,5]
[315972544,1709309397356,1140.2596044,0.0001889,2]
[315972545,1709309418498,11486.10769699,0.0001889,2]
[315972591,1709309432398,-1428.73370646,0.0001889,2]
[315972759,1709309438208,-294.5719047,0.00018889,2]
[315972760,1709309438217,-176.2238837,0.00018889,2]
[315972761,1709309438226,-11985.15859655,0.0001889,2]
[315972762,1709309438237,-170.397411,0.00019178,2]
[315972763,1709309438246,-166.666666,0.00019178,2]
[315972764,1709309438254,-170.397411,0.00019178,2]
[315972765,1709309438263,-5445.53710548,0.00019359,2]
[315972766,1709309438272,-164.8745237,0.0001936,2]
[315972767,1709309438282,-908005.886263,0.00019855,2]
[315972768,1709309438291,-30572.09899469,0.00019885,2]
[315972769,1709309438300,-1587.81601238,0.00019889,2]
[315972770,1709309438309,-736.72976923,0.00019889,2]
[315972771,1709309438318,-173.46476785,0.000199,2]
[315972772,1709309438327,-2827.44,0.0001999,3]
[315972773,1709309438336,-2356.2,0.0001999,3]
[315972774,1709309438346,-1963.5,0.0001999,3]
[315972775,1709309438358,-21278.53122241,0.0002,4]
[315972776,1709309438368,-32519.75297424,0.0002,2]
[315972777,1709309438377,-154.78978508,0.0002,2]
[315972778,1709309438387,-151.6455667,0.0002,2]
[315972779,1709309438396,-5575.91634066,0.0002,2]
[315972780,1709309438407,-20840.03860396,0.0002,2]
[315972781,1709309438416,-400.0,0.00020048,2]
[315972782,1709309438425,-155.02325349,0.00020049,2]
[315972786,1709309438535,-626.06990911,0.0002005,6]
[315972788,1709309438549,-4066.0465469,0.00020189,5]
[315972790,1709309438559,-18349.07700765,0.00020189,5]
[315972791,1709309438568,-5000.0,0.00020189,5]
[315972792,1709309438578,-2179.99995366,0.00020189,2]
[315972793,1709309438588,-5000.0,0.00020189,5]
[315972794,1709309438597,-1526.09213053,0.00020189,5]
[315972795,1709309438608,-559.70484777,0.00020299,2]
[315972796,1709309438618,-166.666666,0.000203,2]
[315972797,1709309438628,-30555.0,0.000205,2]
[315972798,1709309438637,-1164.73826647,0.00020545,2]
[315972799,1709309438647,-3820.69355224,0.00020545,2]
[315972800,1709309438656,-330.22559604,0.00020545,2]
[315972801,1709309438666,-615.6403478,0.00020545,2]
[315972802,1709309438676,-703.29574194,0.00020545,5]
[315972803,1709309438685,-400.43214945,0.00020546,2]
[315972804,1709309438694,-7464.05987197,0.00020546,2]
[315972805,1709309438703,-5090.23309541,0.00020546,2]
[315972806,1709309438713,-537.60970696,0.00020546,2]
[315972807,1709309438722,-412.61270534,0.00020546,2]
[315972808,1709309438732,-500.0,0.00020546,2]
[315972809,1709309438743,-500.0,0.00020546,2]
[315972810,1709309438752,-500.0,0.00020546,2]
[315972811,1709309438762,-500.0,0.00020546,2]
[315972812,1709309438772,-500.0,0.00020546,2]
[315972813,1709309438781,-500.0,0.00020546,2]
[315972814,1709309438791,-500.0,0.00020546,2]
[315972815,1709309438800,-500.0,0.00020546,2]
[315972816,1709309438810,-500.0,0.00020546,2]
[315972817,1709309438820,-500.0,0.00020546,2]
[315972818,1709309438829,-354.63862641,0.00020546,2]
[315972819,1709309438838,-500.0,0.00020546,2]
[315972820,1709309438847,-500.0,0.00020546,2]
[315972821,1709309438857,-500.0,0.00020546,2]
[315972822,1709309438867,-342.16291324,0.00020546,2]
[315972823,1709309438876,-500.0,0.00020546,2]
[315972824,1709309438885,-242.10061658,0.00020546,2]
[315972825,1709309438894,-200.30457798,0.00020546,2]
[315972826,1709309438904,-412.53102785,0.00020546,2]
[315972827,1709309438913,-623.32489458,0.00020546,2]
[315972828,1709309438923,-500.61198271,0.00020547,2]
[315972829,1709309438933,-396.22627538,0.00020547,2]
[315972830,1709309438942,-479.02635274,0.00020547,2]
[315972831,1709309438951,-500.0,0.00020547,2]
[315972832,1709309438960,-500.0,0.00020547,2]
[315972833,1709309438969,-500.0,0.00020547,2]
[315972834,1709309438979,-500.0,0.00020547,2]
[315972835,1709309438989,-500.0,0.00020547,2]
[315972836,1709309438998,-500.0,0.00020547,2]
[315972837,1709309439007,-500.0,0.00020547,2]
[315972838,1709309439017,-205.90771637,0.00020547,2]
[315972839,1709309439025,-500.0,0.00020547,2]
[315972840,1709309439034,-500.39586929,0.00020547,2]
[315972841,1709309439044,-500.0,0.00020547,2]
[315972842,1709309439053,-500.0,0.00020547,2]
[315972843,1709309439063,-500.0,0.00020547,2]
[315972844,1709309439073,-500.0,0.00020547,2]
[315972845,1709309439083,-500.0,0.00020547,2]
[315972846,1709309439092,-500.0,0.00020547,2]
[315972847,1709309439102,-500.0,0.00020547,2]
[315972848,1709309439114,-500.0,0.00020547,2]
[315972849,1709309439124,-500.0,0.00020547,2]
[315972850,1709309439133,-500.0,0.00020547,2]
[315972851,1709309439143,-500.0,0.00020547,2]
[315972852,1709309439152,-500.0,0.00020547,2]
[315972853,1709309439162,-500.0,0.00020547,2]
[315972854,1709309439172,-500.0,0.00020547,2]
[315972855,1709309439181,-500.0,0.00020547,2]
[315972856,1709309439191,-537.90576119,0.00020547,2]
[315972857,1709309439201,-500.0,0.00020547,2]
[315972858,1709309439211,-500.0,0.00020547,2]
[315972859,1709309439220,-301.86451415,0.00020547,2]
[315972860,1709309439230,-500.0,0.00020547,2]
[315972861,1709309439243,-500.0,0.00020547,2]
[315972862,1709309439252,-500.0,0.00020547,2]
[315972863,1709309439261,-500.0,0.00020547,2]
[315972864,1709309439270,-500.0,0.00020547,2]
[315972865,1709309439279,-500.0,0.00020547,2]
[315972866,1709309439288,-500.0,0.00020547,2]
[315972867,1709309439297,-500.0,0.00020547,2]
[315972868,1709309439306,-500.0,0.00020547,2]
[315972869,1709309439316,-500.0,0.00020547,2]
[315972870,1709309439325,-500.0,0.00020547,2]
[315972871,1709309439334,-500.0,0.00020547,2]
[315972872,1709309439344,-500.0,0.00020547,2]
[315972873,1709309439353,-382.86228845,0.00020547,2]
[315972874,1709309439367,-500.0,0.00020547,2]
[315972875,1709309439376,-500.0,0.00020547,2]
[315972876,1709309439385,-203.01649433,0.00020547,2]
[315972877,1709309439394,-165.05541843,0.00020547,2]
[315972878,1709309439408,-500.0,0.00020547,2]
[315972879,1709309439418,-500.0,0.00020547,2]
[315972880,1709309439428,-504.72596105,0.00020547,2]
[315972881,1709309439437,-500.0,0.00020547,2]
[315972882,1709309439447,-500.0,0.00020547,2]
[315972883,1709309439457,-500.0,0.00020547,2]
[315972884,1709309439467,-500.0,0.00020547,2]
[315972885,1709309439478,-360.64308606,0.00020547,2]
[315972886,1709309439490,-500.0,0.00020547,2]
[315972887,1709309439500,-500.0,0.00020547,2]
[315972888,1709309439512,-500.0,0.00020547,2]
[315972889,1709309439523,-500.0,0.00020547,2]
[315972890,1709309439533,-500.0,0.00020547,2]
[315972891,1709309439543,-500.0,0.00020547,2]
[315972892,1709309439553,-500.0,0.00020547,2]
[315972893,1709309439563,-500.0,0.00020547,2]
[315972894,1709309439573,-622.03,0.00020547,2]
[315972895,1709309439582,-500.0,0.00020547,2]
[315972896,1709309439592,-500.0,0.00020547,2]
[315972897,1709309439601,-500.0,0.00020547,2]
[315972898,1709309439610,-500.0,0.00020547,2]
[315972899,1709309439619,-500.0,0.00020547,2]
[315972900,1709309439628,-500.0,0.00020547,2]
[315972901,1709309439637,-500.0,0.00020547,2]
[315972902,1709309439647,-500.0,0.00020547,2]
[315972903,1709309439656,-500.0,0.00020547,2]
[315972904,1709309439665,-500.0,0.00020547,2]
[315972905,1709309439674,-167.66596435,0.00020547,2]
[315972906,1709309439683,-500.0,0.00020547,2]
[315972907,1709309439693,-500.0,0.00020547,2]
[315972908,1709309439702,-500.0,0.00020547,2]
[315972909,1709309439711,-500.0,0.00020547,2]
[315972910,1709309439720,-500.0,0.00020547,2]
[315972911,1709309439730,-500.0,0.00020547,2]
[315972912,1709309439741,-500.0,0.00020547,2]
[315972913,1709309439750,-500.0,0.00020547,2]
[315972914,1709309439758,-500.0,0.00020547,2]
[315972915,1709309439767,-500.0,0.00020547,2]
[315972916,1709309439775,-500.0,0.00020547,2]
[315972917,1709309439784,-500.0,0.00020547,2]
[315972918,1709309439793,-500.0,0.00020547,2]
[315972919,1709309439803,-500.0,0.00020547,2]
[315972920,1709309439813,-500.0,0.00020547,2]
[315972921,1709309439822,-343.63079016,0.00020547,2]
[315972922,1709309439831,-500.0,0.00020547,2]
[315972923,1709309439840,-500.0,0.00020547,2]
[315972924,1709309439849,-241.83685928,0.00020547,2]
[315972925,1709309439857,-500.0,0.00020547,2]
[315972926,1709309439867,-500.0,0.00020547,2]
[315972927,1709309439876,-200.32914559,0.00020547,2]
[315972928,1709309439885,-500.0,0.00020547,2]
[315972929,1709309439895,-500.0,0.00020547,2]
[315972930,1709309439905,-500.0,0.00020547,2]
[315972931,1709309439914,-500.0,0.00020547,2]
[315972932,1709309439923,-500.0,0.00020547,2]
[315972933,1709309439932,-375.80095581,0.00020547,2]
[315972934,1709309439941,-500.0,0.00020547,2]
[315972935,1709309439950,-500.0,0.00020547,2]
[315972936,1709309439967,-500.0,0.00020547,2]
[315972937,1709309439979,-500.0,0.00020547,2]
[315972938,1709309439990,-500.0,0.00020547,2]
[315972939,1709309439999,-500.0,0.00020547,2]
[315972940,1709309440009,-500.0,0.00020547,2]
[315972941,1709309440019,-500.0,0.00020547,2]
[315972942,1709309440030,-500.0,0.00020547,2]
[315972943,1709309440040,-500.0,0.00020547,2]
[315972944,1709309440049,-500.0,0.00020547,2]
[315972945,1709309440058,-500.0,0.00020547,2]
[315972946,1709309440068,-500.0,0.00020547,2]
[315972947,1709309440078,-500.0,0.00020547,2]
[315972948,1709309440087,-500.0,0.00020547,2]
[315972949,1709309440097,-500.0,0.00020547,2]
[315972950,1709309440107,-500.0,0.00020547,2]
[315972951,1709309440117,-500.0,0.00020547,2]
[315972952,1709309440127,-500.0,0.00020547,2]
[315972953,1709309440136,-500.0,0.00020547,2]
[315972954,1709309440145,-500.0,0.00020547,2]
[315972955,1709309440155,-500.0,0.00020547,2]
[315972956,1709309440164,-500.0,0.00020547,2]
[315972957,1709309440173,-500.0,0.00020547,2]
[315972958,1709309440183,-500.0,0.00020547,2]
[315972959,1709309440193,-500.0,0.00020547,2]
[315972960,1709309440202,-500.0,0.00020547,2]
[315972961,1709309440211,-500.0,0.00020547,2]
[315972962,1709309440220,-500.0,0.00020547,2]
[315972963,1709309440230,-500.0,0.00020547,2]
[315972964,1709309440243,-203.311,0.00020547,2]
[315972965,1709309440253,-500.0,0.00020547,2]
[315972966,1709309440264,-500.0,0.00020547,2]
[315972967,1709309440273,-500.0,0.00020547,2]
[315972968,1709309440283,-500.0,0.00020547,2]
[315972970,1709309440294,-500.0,0.00020547,2]
[315972972,1709309440304,-563.29166913,0.00020547,2]
[315972973,1709309440314,-521.000517,0.00020547,2]
[315972974,1709309440325,-500.0,0.00020547,2]
[315972975,1709309440335,-500.0,0.00020547,2]
[315972976,1709309440345,-499.0,0.00020547,2]
[315972977,1709309440357,-500.0,0.00020547,2]
[315972978,1709309440367,-500.0,0.00020547,2]
[315972979,1709309440377,-500.0,0.00020547,2]
[315972980,1709309440387,-500.0,0.00020547,2]
[315972982,1709309440398,-503.80213088,0.00020547,2]
[315972984,1709309440409,-500.0,0.00020547,2]
[315972986,1709309440418,-500.0,0.00020547,2]
[315972988,1709309440427,-181.82041299,0.00020547,2]
[315972989,1709309440437,-500.0,0.00020547,2]
[315972990,1709309440447,-500.0,0.00020547,2]
[315972991,1709309440456,-500.0,0.00020547,2]
[315972993,1709309440467,-500.0,0.00020547,2]
[315972995,1709309440477,-500.0,0.00020547,2]
[315972996,1709309440490,-500.0,0.00020547,2]
[315972999,1709309440499,-500.0,0.00020547,2]
[315973001,1709309440510,-500.0,0.00020547,2]
[315973003,1709309440519,-500.0,0.00020547,2]
[315973004,1709309440528,-500.0,0.00020547,2]
[315973006,1709309440537,-500.0,0.00020547,2]
[315973008,1709309440547,-500.0,0.00020547,2]
[315973011,1709309440558,-500.0,0.00020547,2]
[315973013,1709309440568,-500.0,0.00020547,2]
[315973015,1709309440577,-500.0,0.00020547,2]
[315973017,1709309440587,-500.0,0.00020547,2]
[315973019,1709309440596,-500.0,0.00020547,2]
[315973021,1709309440606,-495.7610089,0.00020547,2]
[315973023,1709309440615,-386.46403286,0.00020547,2]
[315973025,1709309440624,-500.0,0.00020547,2]
[315973027,1709309440634,-500.0,0.00020547,2]
[315973029,1709309440643,-500.0,0.00020547,2]
[315973031,1709309440652,-500.0,0.00020547,2]
[315973033,1709309440661,-500.0,0.00020547,2]
[315973035,1709309440670,-349.59919861,0.00020547,2]
[315973037,1709309440679,-500.0,0.00020547,2]
[315973039,1709309440688,-601.93171131,0.00020547,2]
[315973041,1709309440697,-500.0,0.00020547,2]
[315973043,1709309440707,-500.0,0.00020547,2]
[315973045,1709309440716,-500.0,0.00020547,2]
[315973047,1709309440725,-500.0,0.00020547,2]
[315973049,1709309440734,-500.48590517,0.00020547,2]
[315973051,1709309440746,-380.22775878,0.00020547,2]
[315973053,1709309440755,-501.03495227,0.00020547,2]
[315973055,1709309440765,-500.0,0.00020547,2]
[315973057,1709309440775,-599.29080255,0.00020547,2]
[315973059,1709309440784,-543.54514631,0.00020547,2]
[315973061,1709309440794,-500.0,0.00020547,2]
[315973063,1709309440803,-500.0,0.00020547,2]
[315973065,1709309440812,-500.0,0.00020547,2]
[315973078,1709309440921,-500.0,0.00020547,2]
[315973080,1709309440930,-500.0,0.00020547,2]
[315973082,1709309440939,-500.0,0.00020547,2]
[315973084,1709309440948,-500.0,0.00020547,2]
[315973086,1709309440958,-500.0,0.00020547,2]
[315973088,1709309440969,-500.0,0.00020547,2]
[315973090,1709309440978,-500.0,0.00020547,2]
[315973092,1709309440989,-500.0,0.00020547,2]
[315973094,1709309440999,-179.78236095,0.00020547,2]
[315973096,1709309441008,-500.0,0.00020547,2]
[315973098,1709309441017,-500.0,0.00020547,2]
[315973100,1709309441025,-500.0,0.00020547,2]
[315973102,1709309441034,-500.0,0.00020547,2]
[315973103,1709309441044,-500.0,0.00020547,2]
[315973105,1709309441054,-500.0,0.00020547,2]
[315973107,1709309441064,-500.0,0.00020547,2]
[315973109,1709309441075,-500.0,0.00020547,2]
[315973111,1709309441085,-500.0,0.00020547,2]
[315973113,1709309441094,-500.0,0.00020547,2]
[315973115,1709309441104,-500.0,0.00020547,2]
[315973117,1709309441113,-500.0,0.00020547,2]
[315973119,1709309441122,-452.29044727,0.00020547,2]
[315973121,1709309441131,-175.78279526,0.00020547,2]
[315973123,1709309441141,-500.0,0.00020547,2]
[315973125,1709309441150,-500.0,0.00020547,2]
[315973127,1709309441159,-501.68710773,0.00020547,2]
[315973129,1709309441171,-500.0,0.00020547,2]
[315973131,1709309441180,-501.25651786,0.00020547,2]
[315973133,1709309441190,-217.00868679,0.00020547,2]
[315973135,1709309441200,-500.0,0.00020547,2]
[315973137,1709309441209,-500.0,0.00020547,2]
[315973139,1709309441220,-183.96946213,0.00020547,2]
[315973141,1709309441229,-500.0,0.00020547,2]
[315973143,1709309441241,-504.44467866,0.00020547,2]
[315973145,1709309441250,-500.0,0.00020547,2]
[315973147,1709309441259,-402.38428962,0.00020547,2]
[315973149,1709309441269,-500.0,0.00020547,2]
[315973151,1709309441278,-500.0,0.00020547,2]
[315973153,1709309441288,-500.0,0.00020547,2]
[315973155,1709309441297,-500.0,0.00020547,2]
[315973156,1709309441306,-500.0,0.00020547,2]
[315973158,1709309441316,-501.2660275,0.00020547,2]
[315973160,1709309441325,-500.0,0.00020547,2]
[315973162,1709309441334,-500.0,0.00020547,2]
[315973164,1709309441343,-491.44717413,0.00020547,2]
[315973166,1709309441353,-501.57532436,0.00020547,2]
[315973168,1709309441363,-501.08419367,0.00020547,2]
[315973170,1709309441372,-500.0,0.00020547,2]
[315973172,1709309441383,-500.0,0.00020547,2]
[315973174,1709309441393,-500.0,0.00020547,2]
[315973176,1709309441402,-500.0,0.00020547,2]
[315973178,1709309441412,-504.61327759,0.00020547,2]
[315973180,1709309441421,-500.0,0.00020547,2]
[315973182,1709309441430,-500.0,0.00020547,2]
[315973184,1709309441441,-500.0,0.00020547,2]
[315973186,1709309441451,-500.0,0.00020547,2]
[315973188,1709309441459,-500.0,0.00020547,2]
[315973190,1709309441469,-500.0,0.00020547,2]
[315973192,1709309441480,-500.0,0.00020547,2]
[315973194,1709309441491,-500.0,0.00020547,2]
[315973196,1709309441500,-500.0,0.00020547,2]
[315973198,1709309441509,-500.0,0.00020547,2]
[315973200,1709309441518,-500.0,0.00020547,2]
[315973202,1709309441528,-500.0,0.00020547,2]
[315973203,1709309441537,-500.0,0.00020547,2]
[315973206,1709309441547,-500.0,0.00020547,2]
[315973207,1709309441556,-500.0,0.00020547,2]
[315973209,1709309441565,-500.0,0.00020547,2]
[315973211,1709309441575,-500.0,0.00020547,2]
[315973213,1709309441584,-500.0,0.00020547,2]
[315973215,1709309441593,-625.17870083,0.00020547,2]
[315973217,1709309441602,-500.0,0.00020547,2]
[315973219,1709309441611,-500.0,0.00020547,2]
[315973221,1709309441621,-500.0,0.00020547,2]
[315973223,1709309441630,-500.0,0.00020547,2]
[315973225,1709309441639,-500.0,0.00020547,2]
[315973227,1709309441648,-500.0,0.00020547,2]
[315973229,1709309441657,-500.0,0.00020547,2]
[315973230,1709309441667,-500.0,0.00020547,2]
[315973233,1709309441678,-500.0,0.00020547,2]
[315973234,1709309441687,-500.0,0.00020547,2]
[315973236,1709309441696,-500.0,0.00020547,2]
[315973238,1709309441705,-500.0,0.00020547,2]
[315973240,1709309441714,-500.0,0.00020547,2]
[315973242,1709309441723,-500.0,0.00020547,2]
[315973244,1709309441732,-500.0,0.00020547,2]
[315973246,1709309441742,-223.0,0.00020547,2]
[315973248,1709309441751,-500.0,0.00020547,2]
[315973250,1709309441760,-500.0,0.00020547,2]
[315973252,1709309441769,-500.0,0.00020547,2]
[315973254,1709309441778,-500.0,0.00020547,2]
[315973256,1709309441787,-500.0,0.00020547,2]
[315973258,1709309441796,-500.0,0.00020547,2]
[315973260,1709309441805,-500.0,0.00020547,2]
[315973262,1709309441814,-500.0,0.00020547,2]
[315973264,1709309441823,-464.43362332,0.00020547,2]
[315973266,1709309441832,-500.0,0.00020547,2]
[315973268,1709309441841,-502.23024181,0.00020547,2]
[315973270,1709309441850,-500.0,0.00020547,2]
[315973272,1709309441859,-426.50033035,0.00020547,2]
[315973274,1709309441867,-2652.85,0.00020547,2]
[315973276,1709309441876,-500.0,0.00020547,2]
[315973278,1709309441885,-2652.85,0.00020547,2]
[315973280,1709309441894,-500.0,0.00020547,2]
[315973282,1709309441903,-2652.85,0.00020547,2]
[315973283,1709309441913,-500.0,0.00020547,2]
[315973285,1709309441922,-500.0,0.00020547,2]
[315973287,1709309441931,-2652.85,0.00020547,2]
[315973289,1709309441940,-2652.85,0.00020547,2]
[315973291,1709309441950,-2652.85,0.00020547,2]
[315973293,1709309441959,-500.0,0.00020547,2]
[315973295,1709309441969,-500.0,0.00020547,2]
[315973297,1709309441978,-2652.85,0.00020547,2]
[315973299,1709309441987,-2652.85,0.00020547,2]
[315973301,1709309441997,-500.0,0.00020547,2]
[315973303,1709309442005,-500.0,0.00020547,2]
[315973305,1709309442014,-500.0,0.00020547,2]
[315973307,1709309442023,-500.0,0.00020547,2]
[315973309,1709309442033,-500.0,0.00020547,2]
[315973311,1709309442042,-382.1661985,0.00020547,2]
[315973313,1709309442051,-500.0,0.00020547,2]
[315973315,1709309442060,-319.26345912,0.00020547,2]
[315973317,1709309442069,-500.0,0.00020547,2]
[315973319,1709309442077,-500.0,0.00020547,2]
[315973321,1709309442086,-1161.02,0.00020547,2]
[315973323,1709309442095,-527.39049889,0.00020547,2]
[315973324,1709309442104,-1161.02,0.00020547,2]
[315973326,1709309442114,-1161.02,0.00020547,2]
[315973328,1709309442124,-1161.02,0.00020547,2]
[315973330,1709309442134,-1161.02,0.00020547,2]
[315973332,1709309442144,-1161.02,0.00020547,2]
[315973334,1709309442155,-1161.02,0.00020547,2]
[315973336,1709309442164,-1161.02,0.00020547,2]
[315973338,1709309442174,-302.93813241,0.00020547,2]
[315973340,1709309442183,-500.0,0.00020547,2]
[315973342,1709309442193,-500.0,0.00020547,2]
[315973344,1709309442202,-500.0,0.00020547,2]
[315973346,1709309442212,-508.32586414,0.00020547,2]
[315973348,1709309442221,-500.0,0.00020547,2]
[315973350,1709309442231,-500.0,0.00020547,2]
[315973352,1709309442244,-500.0,0.00020547,2]
[315973354,1709309442255,-500.0,0.00020547,2]
[315973356,1709309442265,-500.0,0.00020547,2]
[315973358,1709309442275,-500.0,0.00020547,2]
[315973360,1709309442285,-500.0,0.00020547,2]
[315973362,1709309442295,-500.0,0.00020547,2]
[315973364,1709309442304,-3057.64,0.00020547,2]
[315973365,1709309442314,-3057.64,0.00020547,2]
[315973366,1709309442323,-3057.64,0.00020547,2]
[315973367,1709309442333,-500.0,0.00020547,2]
[315973368,1709309442342,-3057.64,0.00020547,2]
[315973369,1709309442351,-502.04637778,0.00020547,2]
[315973370,1709309442362,-500.0,0.00020547,2]
[315973371,1709309442372,-3057.64,0.00020547,2]
[315973372,1709309442383,-195.92839568,0.00020547,2]
[315973374,1709309442393,-3057.64,0.00020547,2]
[315973376,1709309442402,-3057.64,0.00020547,2]
[315973378,1709309442411,-3057.64,0.00020547,2]
[315973380,1709309442420,-3057.64,0.00020547,2]
[315973382,1709309442429,-3057.64,0.00020547,2]
[315973384,1709309442439,-3057.64,0.00020547,2]
[315973386,1709309442447,-3057.64,0.00020547,2]
[315973388,1709309442456,-500.0,0.00020547,2]
[315973390,1709309442466,-3057.64,0.00020547,2]
[315973392,1709309442475,-500.0,0.00020547,2]
[315973394,1709309442484,-3057.64,0.00020547,2]
[315973396,1709309442495,-3057.64,0.00020547,2]
[315973398,1709309442505,-500.0,0.00020547,2]
[315973400,1709309442514,-500.0,0.00020547,2]
[315973402,1709309442523,-500.0,0.00020547,2]
[315973404,1709309442532,-500.0,0.00020547,2]
[315973406,1709309442541,-500.0,0.00020547,2]
[315973408,1709309442550,-500.0,0.00020547,2]
[315973410,1709309442559,-500.0,0.00020547,2]
[315973412,1709309442568,-500.0,0.00020547,2]
[315973414,1709309442578,-500.60070753,0.00020547,2]
[315973416,1709309442587,-500.0,0.00020547,2]
[315973418,1709309442597,-500.0,0.00020547,2]
[315973420,1709309442606,-500.0,0.00020547,2]
[315973422,1709309442615,-593.06453736,0.00020547,2]
[315973424,1709309442624,-571.54287158,0.00020547,2]
[315973426,1709309442633,-500.0,0.00020547,2]
[315973428,1709309442642,-500.0,0.00020547,2]
[315973430,1709309442651,-500.0,0.00020547,2]
[315973432,1709309442659,-500.0,0.00020547,2]
[315973434,1709309442669,-500.0,0.00020547,2]
[315973436,1709309442678,-500.0,0.00020547,2]
[315973438,1709309442688,-500.0,0.00020547,2]
[315973439,1709309442697,-500.0,0.00020547,2]
[315973442,1709309442707,-500.0,0.00020547,2]
[315973447,1709309442718,-500.0,0.00020547,2]
[315973450,1709309442727,-500.0,0.00020547,2]
[315973453,1709309442737,-500.0,0.00020547,2]